[Event "December 19 Early 2023"]
[Site "https://www.chess.com"]
[Date "2023.12.19"]
[Round "7"]
[White "Bushonica"]
[Black "Viasus, Juan Diego"]
[Result "1-0"]
[Board "202"]
[TimeControl "180+1"]
[BlackFideId "4464346"]
[WhiteElo "1905"]
[BlackElo "1644"]
[BlackTeam "COL"]
[WhiteClock "0:02:09"]
[BlackClock "0:00:00"]

1. e4 {[%clk 0:02:54]}  c6 {[%clk 0:02:57]} 2. d4 {[%clk 0:02:54]}  g6 {[%clk 0:02:56]} 3. Bd3 {[%clk 0:02:53]}  Bg7 {[%clk 0:02:57]} 4. c3 {[%clk 0:02:52]}  e6 {[%clk 0:02:56]} 5. Nf3 {[%clk 0:02:51]}  d5 {[%clk 0:02:56]} 6. exd5 {[%clk 0:02:51]}  cxd5 {[%clk 0:02:56]} 7. O-O {[%clk 0:02:50]}  Ne7 {[%clk 0:02:57]} 8. Bf4 {[%clk 0:02:49]}  O-O {[%clk 0:02:57]} 9. Nbd2 {[%clk 0:02:44]}  Nbc6 {[%clk 0:02:57]} 10. Re1 {[%clk 0:02:44]}  Qb6 {[%clk 0:02:57]} 11. Qc2 {[%clk 0:02:43]}  Bd7 {[%clk 0:02:52]} 12. Bd6 {[%clk 0:02:38]}  Rfe8 {[%clk 0:02:48]} 13. Bc5 {[%clk 0:02:36]}  Qc7 {[%clk 0:02:47]} 14. Nb3 {[%clk 0:02:28]}  b6 {[%clk 0:02:47]} 15. Bxe7 {[%clk 0:02:28]}  Nxe7 {[%clk 0:02:46]} 16. Rad1 {[%clk 0:02:26]}  Rac8 {[%clk 0:02:46]} 17. Ba6 {[%clk 0:02:23]}  Rb8 {[%clk 0:02:46]} 18. Qe2 {[%clk 0:02:20]}  Bc8 {[%clk 0:02:42]} 19. Bb5 {[%clk 0:02:19]}  Rf8 {[%clk 0:02:38]} 20. Ne5 {[%clk 0:02:12]}  a6 {[%clk 0:02:32]} 21. Bd3 {[%clk 0:02:11]}  b5 {[%clk 0:00:00]} 22. Nc5 {[%clk 0:02:09]} 1-0

[Event "December 19 Early 2023"]
[Site "https://www.chess.com"]
[Date "2023.12.19"]
[Round "8"]
[White "Nakamura, Hikaru"]
[Black "Carlsen, Magnus"]
[Result "1/2-1/2"]
[Board "1"]
[TimeControl "180+1"]
[WhiteFideId "2016192"]
[BlackFideId "1503014"]
[WhiteElo "2874"]
[BlackElo "2887"]
[WhiteTeam "USA"]
[BlackTeam "NOR"]
[WhiteClock "0:00:20"]
[BlackClock "0:00:10"]

1. e4 {[%clk 0:03:00]}  a6 {[%clk 0:02:54]} 2. d4 {[%clk 0:03:00]}  Nc6 {[%clk 0:02:53]} 3. d5 {[%clk 0:02:58]}  Na7 {[%clk 0:02:53]} 4. c4 {[%clk 0:02:50]}  b5 {[%clk 0:02:52]} 5. c5 {[%clk 0:02:47]}  e6 {[%clk 0:02:48]} 6. Be3 {[%clk 0:02:47]}  Nf6 {[%clk 0:02:47]} 7. Qd4 {[%clk 0:02:36]}  exd5 {[%clk 0:02:32]} 8. exd5 {[%clk 0:02:35]}  d6 {[%clk 0:02:17]} 9. c6 {[%clk 0:02:26]}  Ng4 {[%clk 0:02:09]} 10. Nc3 {[%clk 0:02:10]}  Be7 {[%clk 0:02:07]} 11. Bf4 {[%clk 0:02:03]}  O-O {[%clk 0:02:07]} 12. Nf3 {[%clk 0:02:01]}  Bf6 {[%clk 0:02:07]} 13. Qd2 {[%clk 0:02:01]}  Re8+ {[%clk 0:02:04]} 14. Be2 {[%clk 0:02:01]}  b4 {[%clk 0:02:05]} 15. Nd1 {[%clk 0:02:00]}  Nb5 {[%clk 0:02:00]} 16. h3 {[%clk 0:01:54]}  Ne5 {[%clk 0:02:00]} 17. Ne3 {[%clk 0:01:41]}  Nxf3+ {[%clk 0:01:59]} 18. Bxf3 {[%clk 0:01:42]}  Nd4 {[%clk 0:02:00]} 19. Bd1 {[%clk 0:01:42]}  Re4 {[%clk 0:01:46]} 20. Bg3 {[%clk 0:01:39]}  Nf5 {[%clk 0:01:43]} 21. Bh2 {[%clk 0:01:32]}  Rd4 {[%clk 0:01:33]} 22. Qe2 {[%clk 0:01:27]}  Nxe3 {[%clk 0:01:33]} 23. fxe3 {[%clk 0:01:27]}  Rxd5 {[%clk 0:01:33]} 24. O-O {[%clk 0:01:24]}  Rf5 {[%clk 0:01:34]} 25. Bb3 {[%clk 0:01:18]}  Rxf1+ {[%clk 0:01:32]} 26. Rxf1 {[%clk 0:01:19]}  Qe7 {[%clk 0:01:32]} 27. Rf4 {[%clk 0:01:18]}  a5 {[%clk 0:01:29]} 28. Qd3 {[%clk 0:01:17]}  Be6 {[%clk 0:01:26]} 29. Re4 {[%clk 0:01:14]}  Bxb2 {[%clk 0:01:24]} 30. Qb5 {[%clk 0:01:09]}  Bc3 {[%clk 0:01:16]} 31. Bf4 {[%clk 0:01:04]}  Re8 {[%clk 0:01:14]} 32. Qxa5 {[%clk 0:01:03]}  h6 {[%clk 0:01:12]} 33. a3 {[%clk 0:00:57]}  Qd8 {[%clk 0:00:33]} 34. Bxe6 {[%clk 0:00:56]}  Rxe6 {[%clk 0:00:31]} 35. Rxe6 {[%clk 0:00:50]}  fxe6 {[%clk 0:00:32]} 36. axb4 {[%clk 0:00:50]}  e5 {[%clk 0:00:25]} 37. Bg3 {[%clk 0:00:49]}  Kh7 {[%clk 0:00:19]} 38. Qd5 {[%clk 0:00:45]}  Kh8 {[%clk 0:00:15]} 39. b5 {[%clk 0:00:40]}  Qb8 {[%clk 0:00:15]} 40. Bf2 {[%clk 0:00:37]}  Ba5 {[%clk 0:00:15]} 41. e4 {[%clk 0:00:37]}  Bb6 {[%clk 0:00:16]} 42. Bxb6 {[%clk 0:00:35]}  Qxb6+ {[%clk 0:00:17]} 43. Kf1 {[%clk 0:00:36]}  Qe3 {[%clk 0:00:15]} 44. Qf7 {[%clk 0:00:29]}  Qd3+ {[%clk 0:00:13]} 45. Kg1 {[%clk 0:00:29]}  Qxe4 {[%clk 0:00:11]} 46. Kh2 {[%clk 0:00:24]}  Qb4 {[%clk 0:00:08]} 47. Qxc7 {[%clk 0:00:22]}  Qf4+ {[%clk 0:00:08]} 48. Kh1 {[%clk 0:00:20]}  Qf1+ {[%clk 0:00:09]} 49. Kh2 {[%clk 0:00:21]}  Qf4+ {[%clk 0:00:09]} 50. Kh1 {[%clk 0:00:19]}  Qf1+ {[%clk 0:00:10]} 51. Kh2 {[%clk 0:00:20]}  Qf4+ {[%clk 0:00:10]} 1/2-1/2

[Event "December 19 Early 2023"]
[Site "https://www.chess.com"]
[Date "2023.12.19"]
[Round "8"]
[White "Kamsky, Gata"]
[Black "Korobov, Anton"]
[Result "1-0"]
[Board "4"]
[TimeControl "180+1"]
[WhiteFideId "2000024"]
[BlackFideId "14105730"]
[WhiteElo "2660"]
[BlackElo "2649"]
[WhiteTeam "USA"]
[BlackTeam "UKR"]
[WhiteClock "0:01:04"]
[BlackClock "0:00:37"]

1. d4 {[%clk 0:03:00]}  Nf6 {[%clk 0:02:57]} 2. Bf4 {[%clk 0:03:00]}  c5 {[%clk 0:02:57]} 3. e3 {[%clk 0:02:57]}  Nd5 {[%clk 0:02:49]} 4. Bg3 {[%clk 0:02:51]}  Qb6 {[%clk 0:02:47]} 5. Nc3 {[%clk 0:02:41]}  Nxc3 {[%clk 0:02:44]} 6. bxc3 {[%clk 0:02:41]}  e6 {[%clk 0:02:37]} 7. Bd3 {[%clk 0:02:20]}  Qa5 {[%clk 0:02:31]} 8. Qd2 {[%clk 0:02:14]}  Nc6 {[%clk 0:02:20]} 9. Nf3 {[%clk 0:02:13]}  d5 {[%clk 0:02:10]} 10. O-O {[%clk 0:01:58]}  c4 {[%clk 0:02:03]} 11. Be2 {[%clk 0:01:57]}  Ba3 {[%clk 0:02:01]} 12. Rab1 {[%clk 0:01:55]}  O-O {[%clk 0:01:51]} 13. e4 {[%clk 0:01:51]}  dxe4 {[%clk 0:01:36]} 14. Ne5 {[%clk 0:01:38]}  Nxe5 {[%clk 0:01:33]} 15. Bxe5 {[%clk 0:01:38]}  f6 {[%clk 0:01:32]} 16. Bf4 {[%clk 0:01:28]}  Qd5 {[%clk 0:01:22]} 17. f3 {[%clk 0:01:27]}  f5 {[%clk 0:01:11]} 18. fxe4 {[%clk 0:01:23]}  fxe4 {[%clk 0:01:12]} 19. Be5 {[%clk 0:01:21]}  h6 {[%clk 0:01:06]} 20. Rxf8+ {[%clk 0:01:19]}  Bxf8 {[%clk 0:01:05]} 21. Qf4 {[%clk 0:01:07]}  Bd7 {[%clk 0:00:49]} 22. Rf1 {[%clk 0:01:06]}  Bc6 {[%clk 0:00:48]} 23. Qf7+ {[%clk 0:01:06]}  Kh8 {[%clk 0:00:48]} 24. Qg6 {[%clk 0:01:06]}  Qd7 {[%clk 0:00:37]} 25. Rf7 {[%clk 0:01:04]} 1-0

[Event "December 19 Early 2023"]
[Site "https://www.chess.com"]
[Date "2023.12.19"]
[Round "8"]
[White "Kovalev, Vladislav"]
[Black "Terry, Renato"]
[Result "1-0"]
[Board "5"]
[TimeControl "180+1"]
[WhiteFideId "13504398"]
[BlackFideId "3803457"]
[WhiteElo "2539"]
[BlackElo "2578"]
[WhiteTeam "FID"]
[BlackTeam "PER"]
[WhiteClock "0:00:04"]
[BlackClock "0:00:03"]

1. e4 {[%clk 0:03:00]}  e6 {[%clk 0:03:00]} 2. d4 {[%clk 0:03:00]}  d5 {[%clk 0:03:01]} 3. exd5 {[%clk 0:02:59]}  exd5 {[%clk 0:03:01]} 4. Nf3 {[%clk 0:03:00]}  Nc6 {[%clk 0:03:01]} 5. Bd3 {[%clk 0:02:58]}  Bd6 {[%clk 0:03:00]} 6. O-O {[%clk 0:02:59]}  Bg4 {[%clk 0:03:00]} 7. Re1+ {[%clk 0:02:50]}  Nge7 {[%clk 0:03:00]} 8. c3 {[%clk 0:02:46]}  Qd7 {[%clk 0:02:59]} 9. Nbd2 {[%clk 0:02:46]}  O-O {[%clk 0:02:56]} 10. Nf1 {[%clk 0:02:39]}  Bf5 {[%clk 0:02:44]} 11. Ng3 {[%clk 0:02:20]}  Bxd3 {[%clk 0:02:43]} 12. Qxd3 {[%clk 0:02:21]}  Rfe8 {[%clk 0:02:39]} 13. Bd2 {[%clk 0:02:12]}  a6 {[%clk 0:02:30]} 14. Re2 {[%clk 0:02:01]}  Bxg3 {[%clk 0:02:16]} 15. hxg3 {[%clk 0:02:02]}  Qf5 {[%clk 0:02:15]} 16. Qe3 {[%clk 0:01:49]}  f6 {[%clk 0:01:46]} 17. Rae1 {[%clk 0:01:44]}  Qd7 {[%clk 0:01:45]} 18. Nh4 {[%clk 0:01:12]}  Kf7 {[%clk 0:01:40]} 19. Qf3 {[%clk 0:01:05]}  Kg8 {[%clk 0:00:26]} 20. g4 {[%clk 0:00:57]}  Rf8 {[%clk 0:00:22]} 21. Nf5 {[%clk 0:00:31]}  Nxf5 {[%clk 0:00:14]} 22. gxf5 {[%clk 0:00:32]}  Rad8 {[%clk 0:00:13]} 23. Re6 {[%clk 0:00:27]}  Qf7 {[%clk 0:00:13]} 24. Bf4 {[%clk 0:00:26]}  Rd7 {[%clk 0:00:12]} 25. Qg3 {[%clk 0:00:20]}  Kh8 {[%clk 0:00:11]} 26. b4 {[%clk 0:00:17]}  Nd8 {[%clk 0:00:11]} 27. R6e3 {[%clk 0:00:18]}  Nc6 {[%clk 0:00:12]} 28. a4 {[%clk 0:00:18]}  Ne7 {[%clk 0:00:12]} 29. Qg4 {[%clk 0:00:17]}  Kg8 {[%clk 0:00:03]} 30. Re6 {[%clk 0:00:16]}  Nc6 {[%clk 0:00:04]} 31. Qh3 {[%clk 0:00:11]}  Ne7 {[%clk 0:00:03]} 32. g4 {[%clk 0:00:12]}  Nc6 {[%clk 0:00:03]} 33. Qg3 {[%clk 0:00:12]}  Nd8 {[%clk 0:00:03]} 34. Kg2 {[%clk 0:00:11]}  Nc6 {[%clk 0:00:03]} 35. R1e2 {[%clk 0:00:10]}  Nd8 {[%clk 0:00:03]} 36. Qh4 {[%clk 0:00:09]}  Nc6 {[%clk 0:00:03]} 37. R6e3 {[%clk 0:00:09]}  Ne7 {[%clk 0:00:02]} 38. Re1 {[%clk 0:00:09]}  g5 {[%clk 0:00:02]} 39. Bxg5 {[%clk 0:00:08]}  fxg5 {[%clk 0:00:03]} 40. Qxg5+ {[%clk 0:00:09]}  Ng6 {[%clk 0:00:04]} 41. R1e2 {[%clk 0:00:06]}  Rd6 {[%clk 0:00:02]} 42. Re7 {[%clk 0:00:02]}  Qf6 {[%clk 0:00:02]} 43. Qxf6 {[%clk 0:00:02]}  Rdxf6 {[%clk 0:00:01]} 44. fxg6 {[%clk 0:00:03]}  Rxg6 {[%clk 0:00:02]} 45. f3 {[%clk 0:00:03]}  Rgf6 {[%clk 0:00:02]} 46. R2e3 {[%clk 0:00:03]}  Rc6 {[%clk 0:00:02]} 47. Kg3 {[%clk 0:00:03]}  Rd8 {[%clk 0:00:02]} 48. f4 {[%clk 0:00:03]}  h6 {[%clk 0:00:02]} 49. f5 {[%clk 0:00:03]}  Kf8 {[%clk 0:00:02]} 50. R7e6 {[%clk 0:00:03]}  Rdd6 {[%clk 0:00:03]} 51. Rxd6 {[%clk 0:00:02]}  cxd6 {[%clk 0:00:03]} 52. Kf4 {[%clk 0:00:03]}  Kf7 {[%clk 0:00:04]} 53. Rh3 {[%clk 0:00:03]}  Kg7 {[%clk 0:00:03]} 54. g5 {[%clk 0:00:03]}  h5 {[%clk 0:00:04]} 55. Rxh5 {[%clk 0:00:02]}  Rxc3 {[%clk 0:00:04]} 56. f6+ {[%clk 0:00:03]}  Kf7 {[%clk 0:00:03]} 57. Rh7+ {[%clk 0:00:04]}  Kf8 {[%clk 0:00:02]} 58. Rxb7 {[%clk 0:00:04]}  Rd3 {[%clk 0:00:03]} 59. Kf5 {[%clk 0:00:04]}  Rxd4 {[%clk 0:00:03]} 60. g6 {[%clk 0:00:05]}  Ke8 {[%clk 0:00:03]} 61. g7 {[%clk 0:00:04]} 1-0

[Event "December 19 Early 2023"]
[Site "https://www.chess.com"]
[Date "2023.12.19"]
[Round "8"]
[White "Mitrabha, Guha"]
[Black "Vakhlamov, Igor L."]
[Result "0-1"]
[Board "14"]
[TimeControl "180+1"]
[WhiteFideId "5057000"]
[BlackFideId "24126748"]
[WhiteElo "2512"]
[BlackElo "2407"]
[WhiteTeam "IND"]
[BlackTeam "RUS"]
[WhiteClock "0:00:07"]
[BlackClock "0:00:05"]

1. Nf3 {[%clk 0:03:00]}  d5 {[%clk 0:02:59]} 2. d4 {[%clk 0:03:00]}  Nf6 {[%clk 0:03:00]} 3. Bf4 {[%clk 0:03:00]}  Bf5 {[%clk 0:03:00]} 4. c4 {[%clk 0:03:00]}  e6 {[%clk 0:03:01]} 5. Nc3 {[%clk 0:03:00]}  Bb4 {[%clk 0:03:00]} 6. e3 {[%clk 0:03:00]}  O-O {[%clk 0:03:00]} 7. Qb3 {[%clk 0:02:56]}  Nc6 {[%clk 0:03:00]} 8. Be2 {[%clk 0:02:55]}  Ne4 {[%clk 0:03:00]} 9. O-O {[%clk 0:02:54]}  g5 {[%clk 0:02:57]} 10. Nxe4 {[%clk 0:02:47]}  gxf4 {[%clk 0:02:54]} 11. Nc3 {[%clk 0:02:47]}  fxe3 {[%clk 0:02:52]} 12. fxe3 {[%clk 0:02:48]}  dxc4 {[%clk 0:02:43]} 13. Bxc4 {[%clk 0:02:46]}  Bxc3 {[%clk 0:02:38]} 14. Qxc3 {[%clk 0:02:46]}  Be4 {[%clk 0:02:29]} 15. Nd2 {[%clk 0:02:42]}  Bd5 {[%clk 0:02:26]} 16. Bd3 {[%clk 0:02:42]}  f5 {[%clk 0:02:24]} 17. e4 {[%clk 0:02:35]}  fxe4 {[%clk 0:02:25]} 18. Nxe4 {[%clk 0:02:34]}  Rxf1+ {[%clk 0:01:35]} 19. Rxf1 {[%clk 0:02:28]}  Bxe4 {[%clk 0:01:35]} 20. Bxe4 {[%clk 0:02:27]}  Qxd4+ {[%clk 0:01:36]} 21. Qxd4 {[%clk 0:02:09]}  Nxd4 {[%clk 0:01:37]} 22. Rd1 {[%clk 0:02:05]}  c5 {[%clk 0:01:24]} 23. Kf2 {[%clk 0:02:00]}  Rd8 {[%clk 0:01:18]} 24. Rd3 {[%clk 0:01:55]}  Rd7 {[%clk 0:01:10]} 25. Rg3+ {[%clk 0:01:53]}  Kf8 {[%clk 0:01:07]} 26. Rh3 {[%clk 0:01:51]}  Kg8 {[%clk 0:00:43]} 27. Rg3+ {[%clk 0:01:51]}  Kf8 {[%clk 0:00:42]} 28. Rh3 {[%clk 0:01:51]}  Rf7+ {[%clk 0:00:40]} 29. Ke3 {[%clk 0:01:43]}  Nf5+ {[%clk 0:00:39]} 30. Kd3 {[%clk 0:01:43]}  Rg7 {[%clk 0:00:34]} 31. Kc3 {[%clk 0:01:38]}  b6 {[%clk 0:00:31]} 32. Rh5 {[%clk 0:01:29]}  Ke7 {[%clk 0:00:28]} 33. g3 {[%clk 0:01:27]}  Kf6 {[%clk 0:00:27]} 34. Bf3 {[%clk 0:01:20]}  Nd4 {[%clk 0:00:24]} 35. Be4 {[%clk 0:01:19]}  Nf5 {[%clk 0:00:24]} 36. Bf3 {[%clk 0:01:20]}  Nd6 {[%clk 0:00:16]} 37. g4 {[%clk 0:01:16]}  Nf7 {[%clk 0:00:16]} 38. h4 {[%clk 0:01:12]}  h6 {[%clk 0:00:16]} 39. Be2 {[%clk 0:01:10]}  Rg8 {[%clk 0:00:17]} 40. a4 {[%clk 0:01:07]}  Rd8 {[%clk 0:00:17]} 41. a5 {[%clk 0:01:07]}  Rd4 {[%clk 0:00:15]} 42. a6 {[%clk 0:01:04]}  Re4 {[%clk 0:00:14]} 43. Bd1 {[%clk 0:01:02]}  Rd4 {[%clk 0:00:12]} 44. Be2 {[%clk 0:01:02]}  Re4 {[%clk 0:00:11]} 45. Bd1 {[%clk 0:01:02]}  Rf4 {[%clk 0:00:10]} 46. Be2 {[%clk 0:01:00]}  Rf2 {[%clk 0:00:09]} 47. Kd3 {[%clk 0:00:59]}  Rg2 {[%clk 0:00:09]} 48. Ke3 {[%clk 0:00:59]}  Rg3+ {[%clk 0:00:09]} 49. Bf3 {[%clk 0:00:58]}  Rg1 {[%clk 0:00:09]} 50. Kd2 {[%clk 0:00:55]}  Rb1 {[%clk 0:00:08]} 51. Kc2 {[%clk 0:00:54]}  Rf1 {[%clk 0:00:08]} 52. Be2 {[%clk 0:00:54]}  Rf4 {[%clk 0:00:09]} 53. Kc3 {[%clk 0:00:53]}  Ra4 {[%clk 0:00:08]} 54. g5+ {[%clk 0:00:30]}  hxg5 {[%clk 0:00:09]} 55. hxg5+ {[%clk 0:00:30]}  Nxg5 {[%clk 0:00:09]} 56. Rh8 {[%clk 0:00:31]}  Ne4+ {[%clk 0:00:09]} 57. Kc2 {[%clk 0:00:31]}  c4 {[%clk 0:00:08]} 58. Ra8 {[%clk 0:00:31]}  Rxa6 {[%clk 0:00:07]} 59. Bxc4 {[%clk 0:00:31]}  Ra5 {[%clk 0:00:08]} 60. Rf8+ {[%clk 0:00:30]}  Ke7 {[%clk 0:00:08]} 61. Rh8 {[%clk 0:00:31]}  Nd6 {[%clk 0:00:08]} 62. Rh7+ {[%clk 0:00:31]}  Kf6 {[%clk 0:00:07]} 63. Bb3 {[%clk 0:00:30]}  Rc5+ {[%clk 0:00:07]} 64. Kd3 {[%clk 0:00:30]}  Nf5 {[%clk 0:00:07]} 65. Rxa7 {[%clk 0:00:30]}  Rb5 {[%clk 0:00:07]} 66. Ra3 {[%clk 0:00:29]}  Ke5 {[%clk 0:00:07]} 67. Kc3 {[%clk 0:00:29]}  Nd6 {[%clk 0:00:06]} 68. Bc2 {[%clk 0:00:25]}  Rc5+ {[%clk 0:00:04]} 69. Kd3 {[%clk 0:00:25]}  Nc4 {[%clk 0:00:04]} 70. Rb3 {[%clk 0:00:22]}  b5 {[%clk 0:00:05]} 71. Rb4 {[%clk 0:00:20]}  Nb6 {[%clk 0:00:04]} 72. Re4+ {[%clk 0:00:18]}  Kd6 {[%clk 0:00:05]} 73. Bb3 {[%clk 0:00:17]}  Nd5 {[%clk 0:00:04]} 74. Rh4 {[%clk 0:00:18]}  Nf6 {[%clk 0:00:04]} 75. Rh6 {[%clk 0:00:18]}  Rf5 {[%clk 0:00:04]} 76. Rh8 {[%clk 0:00:18]}  Nd5 {[%clk 0:00:04]} 77. Rd8+ {[%clk 0:00:17]}  Ke5 {[%clk 0:00:05]} 78. Rb8 {[%clk 0:00:18]}  Rf3+ {[%clk 0:00:06]} 79. Kc2 {[%clk 0:00:17]}  Nb4+ {[%clk 0:00:06]} 80. Kd2 {[%clk 0:00:17]}  Rxb3 {[%clk 0:00:06]} 81. Rxb5+ {[%clk 0:00:18]}  Ke4 {[%clk 0:00:06]} 82. Rb6 {[%clk 0:00:18]}  e5 {[%clk 0:00:06]} 83. Rh6 {[%clk 0:00:16]}  Rxb2+ {[%clk 0:00:05]} 84. Kc3 {[%clk 0:00:16]}  Rb1 {[%clk 0:00:05]} 85. Rh4+ {[%clk 0:00:17]}  Kf3 {[%clk 0:00:06]} 86. Rh3+ {[%clk 0:00:17]}  Kg4 {[%clk 0:00:06]} 87. Rh8 {[%clk 0:00:17]}  Nd5+ {[%clk 0:00:05]} 88. Kc4 {[%clk 0:00:18]}  Nf4 {[%clk 0:00:06]} 89. Kc3 {[%clk 0:00:16]}  Rd1 {[%clk 0:00:05]} 90. Kc2 {[%clk 0:00:17]}  Rd6 {[%clk 0:00:05]} 91. Rh1 {[%clk 0:00:17]}  e4 {[%clk 0:00:06]} 92. Re1 {[%clk 0:00:17]}  Kf5 {[%clk 0:00:05]} 93. Kc3 {[%clk 0:00:15]}  Ke5 {[%clk 0:00:06]} 94. Ra1 {[%clk 0:00:14]}  Rd3+ {[%clk 0:00:06]} 95. Kc2 {[%clk 0:00:15]}  Nd5 {[%clk 0:00:07]} 96. Ra8 {[%clk 0:00:15]}  Rh3 {[%clk 0:00:07]} 97. Re8+ {[%clk 0:00:15]}  Kd4 {[%clk 0:00:08]} 98. Kd2 {[%clk 0:00:16]}  Rh2+ {[%clk 0:00:08]} 99. Ke1 {[%clk 0:00:16]}  Ke3 {[%clk 0:00:09]} 100. Kf1 {[%clk 0:00:17]}  Nf4 {[%clk 0:00:09]} 101. Kg1 {[%clk 0:00:17]}  Rg2+ {[%clk 0:00:10]} 102. Kf1 {[%clk 0:00:17]}  Ra2 {[%clk 0:00:10]} 103. Kg1 {[%clk 0:00:17]}  Kf3 {[%clk 0:00:11]} 104. Rg8 {[%clk 0:00:17]}  e3 {[%clk 0:00:11]} 105. Kh1 {[%clk 0:00:16]}  Ra1+ {[%clk 0:00:10]} 106. Kh2 {[%clk 0:00:17]}  e2 {[%clk 0:00:11]} 107. Rg3+ {[%clk 0:00:17]}  Ke4 {[%clk 0:00:11]} 108. Rg8 {[%clk 0:00:12]}  Ra3 {[%clk 0:00:10]} 109. Re8+ {[%clk 0:00:12]}  Kf3 {[%clk 0:00:11]} 110. Re7 {[%clk 0:00:07]}  Ra2 {[%clk 0:00:09]} 111. Kg1 {[%clk 0:00:06]}  Ra1+ {[%clk 0:00:07]} 112. Kh2 {[%clk 0:00:06]}  Nd3 {[%clk 0:00:04]} 113. Rf7+ {[%clk 0:00:06]}  Ke3 {[%clk 0:00:05]} 114. Re7+ {[%clk 0:00:06]}  Kd2 {[%clk 0:00:05]} 115. Rg7 {[%clk 0:00:05]}  e1=Q {[%clk 0:00:06]} 116. Rg2+ {[%clk 0:00:06]}  Qe2 {[%clk 0:00:05]} 117. Kg3 {[%clk 0:00:06]}  Qxg2+ {[%clk 0:00:05]} 118. Kxg2 {[%clk 0:00:07]} 0-1

[Event "December 19 Early 2023"]
[Site "https://www.chess.com"]
[Date "2023.12.19"]
[Round "8"]
[White "Pakleza, Zbigniew"]
[Black "Popov, Konstantin"]
[Result "0-1"]
[Board "16"]
[TimeControl "180+1"]
[WhiteFideId "1119290"]
[BlackFideId "34137910"]
[WhiteElo "2410"]
[BlackElo "2340"]
[WhiteTeam "POL"]
[BlackTeam "FID"]
[WhiteClock "0:00:03"]
[BlackClock "0:00:06"]

1. d4 {[%clk 0:03:00]}  Nf6 {[%clk 0:03:00]} 2. Nf3 {[%clk 0:03:01]}  b6 {[%clk 0:02:59]} 3. Bf4 {[%clk 0:03:01]}  Bb7 {[%clk 0:02:59]} 4. e3 {[%clk 0:03:02]}  g6 {[%clk 0:02:59]} 5. h3 {[%clk 0:03:01]}  Bg7 {[%clk 0:02:59]} 6. Be2 {[%clk 0:03:02]}  d6 {[%clk 0:02:59]} 7. O-O {[%clk 0:03:01]}  Nbd7 {[%clk 0:03:00]} 8. a4 {[%clk 0:03:00]}  a6 {[%clk 0:03:00]} 9. c3 {[%clk 0:03:00]}  O-O {[%clk 0:02:59]} 10. Nbd2 {[%clk 0:02:59]}  Re8 {[%clk 0:02:59]} 11. Bh2 {[%clk 0:02:59]}  e5 {[%clk 0:02:59]} 12. Qb3 {[%clk 0:03:00]}  Rb8 {[%clk 0:02:51]} 13. Rfd1 {[%clk 0:02:59]}  Qe7 {[%clk 0:02:50]} 14. Rac1 {[%clk 0:02:56]}  h5 {[%clk 0:02:49]} 15. Bg3 {[%clk 0:02:55]}  Ne4 {[%clk 0:02:40]} 16. Nxe4 {[%clk 0:02:54]}  Bxe4 {[%clk 0:02:40]} 17. Bxa6 {[%clk 0:02:46]}  Bxf3 {[%clk 0:02:16]} 18. gxf3 {[%clk 0:02:47]}  h4 {[%clk 0:02:17]} 19. Bh2 {[%clk 0:02:47]}  Qg5+ {[%clk 0:02:16]} 20. Kh1 {[%clk 0:02:42]}  Qf5 {[%clk 0:02:16]} 21. Kg2 {[%clk 0:02:39]}  Nf6 {[%clk 0:02:08]} 22. dxe5 {[%clk 0:02:27]}  dxe5 {[%clk 0:02:07]} 23. Qc2 {[%clk 0:01:51]}  e4 {[%clk 0:01:59]} 24. fxe4 {[%clk 0:01:38]}  Nxe4 {[%clk 0:01:57]} 25. Bxc7 {[%clk 0:01:26]}  Qg5+ {[%clk 0:01:39]} 26. Kh1 {[%clk 0:01:10]}  Be5 {[%clk 0:01:18]} 27. Bxb8 {[%clk 0:00:48]}  Bxb8 {[%clk 0:01:19]} 28. Rg1 {[%clk 0:00:30]}  Qf5 {[%clk 0:01:02]} 29. Kg2 {[%clk 0:00:26]}  Qg5+ {[%clk 0:00:52]} 30. Kf1 {[%clk 0:00:21]}  Qf5 {[%clk 0:00:52]} 31. Bd3 {[%clk 0:00:19]}  Qxh3+ {[%clk 0:00:51]} 32. Ke1 {[%clk 0:00:10]}  Nxf2 {[%clk 0:00:28]} 33. Qxf2 {[%clk 0:00:09]}  Bg3 {[%clk 0:00:29]} 34. Rxg3 {[%clk 0:00:08]}  hxg3 {[%clk 0:00:30]} 35. Qg1 {[%clk 0:00:06]}  Rd8 {[%clk 0:00:18]} 36. Rd1 {[%clk 0:00:06]}  g2 {[%clk 0:00:14]} 37. Kd2 {[%clk 0:00:05]}  Qd7 {[%clk 0:00:10]} 38. Kc2 {[%clk 0:00:05]}  Qxa4+ {[%clk 0:00:11]} 39. Kb1 {[%clk 0:00:05]}  Qg4 {[%clk 0:00:09]} 40. Bc2 {[%clk 0:00:04]}  Rxd1+ {[%clk 0:00:07]} 41. Bxd1 {[%clk 0:00:05]}  Qe4+ {[%clk 0:00:08]} 42. Bc2 {[%clk 0:00:03]}  Qf3 {[%clk 0:00:08]} 43. Ka2 {[%clk 0:00:03]}  Qf1 {[%clk 0:00:08]} 44. Qh2 {[%clk 0:00:02]}  g1=Q {[%clk 0:00:07]} 45. Qb8+ {[%clk 0:00:01]}  Kg7 {[%clk 0:00:08]} 46. Qxb6 {[%clk 0:00:02]}  Qf6 {[%clk 0:00:07]} 47. Qb5 {[%clk 0:00:02]}  Qxe3 {[%clk 0:00:06]} 48. Bb3 {[%clk 0:00:02]}  Qee5 {[%clk 0:00:07]} 49. Qa4 {[%clk 0:00:02]}  Qb6 {[%clk 0:00:07]} 50. Qc4 {[%clk 0:00:02]}  Qea5+ {[%clk 0:00:07]} 51. Kb1 {[%clk 0:00:02]}  Qg1+ {[%clk 0:00:07]} 52. Kc2 {[%clk 0:00:03]}  Qf5+ {[%clk 0:00:06]} 53. Qd3 {[%clk 0:00:03]} 0-1

[Event "December 19 Early 2023"]
[Site "https://www.chess.com"]
[Date "2023.12.19"]
[Round "8"]
[White "Agibileg, Uurtsaikh"]
[Black "Materia, Marco"]
[Result "1-0"]
[Board "19"]
[TimeControl "180+1"]
[WhiteFideId "4901606"]
[BlackFideId "45150451"]
[WhiteElo "2288"]
[BlackElo "2451"]
[WhiteTeam "MGL"]
[BlackTeam "FRA"]
[WhiteClock "0:00:44"]
[BlackClock "0:00:04"]

1. d4 {[%clk 0:02:59]}  Nf6 {[%clk 0:02:59]} 2. c4 {[%clk 0:02:59]}  e6 {[%clk 0:03:00]} 3. Nc3 {[%clk 0:03:00]}  d5 {[%clk 0:02:59]} 4. cxd5 {[%clk 0:02:59]}  exd5 {[%clk 0:02:59]} 5. Bg5 {[%clk 0:03:00]}  Be7 {[%clk 0:03:00]} 6. e3 {[%clk 0:03:00]}  h6 {[%clk 0:03:01]} 7. Bh4 {[%clk 0:03:00]}  c6 {[%clk 0:03:00]} 8. Bd3 {[%clk 0:02:59]}  O-O {[%clk 0:02:59]} 9. Qc2 {[%clk 0:02:59]}  a5 {[%clk 0:02:56]} 10. Nge2 {[%clk 0:02:59]}  Na6 {[%clk 0:02:56]} 11. a3 {[%clk 0:02:53]}  Ne8 {[%clk 0:02:54]} 12. Bg3 {[%clk 0:02:50]}  Nd6 {[%clk 0:02:41]} 13. O-O {[%clk 0:02:50]}  Nc7 {[%clk 0:02:29]} 14. f3 {[%clk 0:02:41]}  Bh4 {[%clk 0:02:21]} 15. Kh1 {[%clk 0:02:39]}  Bxg3 {[%clk 0:02:20]} 16. Nxg3 {[%clk 0:02:40]}  Ne6 {[%clk 0:02:18]} 17. Rad1 {[%clk 0:02:34]}  b5 {[%clk 0:02:13]} 18. Nce2 {[%clk 0:02:32]}  Nc4 {[%clk 0:02:11]} 19. Nf5 {[%clk 0:02:15]}  Nc7 {[%clk 0:01:55]} 20. Neg3 {[%clk 0:02:07]}  g6 {[%clk 0:01:50]} 21. Nxh6+ {[%clk 0:02:02]}  Kg7 {[%clk 0:01:51]} 22. Bxc4 {[%clk 0:02:00]}  dxc4 {[%clk 0:01:51]} 23. Ng4 {[%clk 0:01:59]}  Bxg4 {[%clk 0:01:52]} 24. fxg4 {[%clk 0:01:59]}  Nd5 {[%clk 0:01:52]} 25. Qf2 {[%clk 0:01:56]}  Qg5 {[%clk 0:01:51]} 26. Rde1 {[%clk 0:01:49]}  Rad8 {[%clk 0:01:27]} 27. h3 {[%clk 0:01:44]}  Nb6 {[%clk 0:00:54]} 28. Ne4 {[%clk 0:01:31]}  Qe7 {[%clk 0:00:53]} 29. Nf6 {[%clk 0:01:31]}  c5 {[%clk 0:00:46]} 30. Qh4 {[%clk 0:01:14]}  Rh8 {[%clk 0:00:41]} 31. Qg5 {[%clk 0:01:13]}  Nd5 {[%clk 0:00:35]} 32. Nh5+ {[%clk 0:01:10]}  Kf8 {[%clk 0:00:35]} 33. Qxg6 {[%clk 0:01:09]}  Ke8 {[%clk 0:00:16]} 34. Qc6+ {[%clk 0:01:04]}  Kf8 {[%clk 0:00:15]} 35. Qg6 {[%clk 0:00:57]}  Rg8 {[%clk 0:00:11]} 36. Qh6+ {[%clk 0:00:57]}  Ke8 {[%clk 0:00:12]} 37. e4 {[%clk 0:00:53]}  Rd6 {[%clk 0:00:12]} 38. Qh7 {[%clk 0:00:52]}  Kf8 {[%clk 0:00:07]} 39. exd5 {[%clk 0:00:49]}  Qb7 {[%clk 0:00:06]} 40. Re8+ {[%clk 0:00:43]}  Kxe8 {[%clk 0:00:04]} 41. Qxg8+ {[%clk 0:00:44]} 1-0